[Event "Titled Tuesday Blitz June 13 Late 2023"]
[White "Prydun, Andriy"]
[Black "Deng, Henry"]
[WhiteFideId "14145898"]
[BlackFideId "30965454"]
[WhiteElo "2164"]
[BlackElo "2550"]
[Result "0-1"]
[Round "6"]
[TimeControl "180+2"]
[Date "2023.06.13"]
[WhiteClock "0:00:03"]
[BlackClock "0:02:12"]
[Board "89"]

1. e4 {[%clk 0:02:54]}  c5 {[%clk 0:02:58]} 2. Nf3 {[%clk 0:02:54]}  e6 {[%clk 0:02:59]} 3. c3 {[%clk 0:02:46]}  Nf6 {[%clk 0:02:58]} 4. e5 {[%clk 0:02:30]}  Nd5 {[%clk 0:02:54]} 5. d4 {[%clk 0:02:30]}  cxd4 {[%clk 0:02:55]} 6. Qxd4 {[%clk 0:02:30]}  Nc6 {[%clk 0:02:53]} 7. Qe4 {[%clk 0:02:30]}  d6 {[%clk 0:02:54]} 8. exd6 {[%clk 0:02:29]}  Qxd6 {[%clk 0:02:52]} 9. Bd3 {[%clk 0:02:27]}  Be7 {[%clk 0:02:50]} 10. O-O {[%clk 0:02:25]}  Nf6 {[%clk 0:02:50]} 11. Qe2 {[%clk 0:02:24]}  O-O {[%clk 0:02:49]} 12. Re1 {[%clk 0:02:22]}  Bd7 {[%clk 0:02:44]} 13. Bg5 {[%clk 0:02:22]}  h6 {[%clk 0:02:42]} 14. Bh4 {[%clk 0:02:21]}  Nd5 {[%clk 0:02:38]} 15. Qe4 {[%clk 0:02:12]}  f5 {[%clk 0:02:38]} 16. Bxe7 {[%clk 0:02:12]}  Ndxe7 {[%clk 0:02:37]} 17. Qe2 {[%clk 0:02:08]}  Ng6 {[%clk 0:02:36]} 18. Bb5 {[%clk 0:02:03]}  Rae8 {[%clk 0:02:32]} 19. Na3 {[%clk 0:01:31]}  a6 {[%clk 0:02:27]} 20. Nc4 {[%clk 0:01:27]}  Qc5 {[%clk 0:02:25]} 21. Bxc6 {[%clk 0:01:26]}  Bxc6 {[%clk 0:02:25]} 22. Nce5 {[%clk 0:01:22]}  Nxe5 {[%clk 0:02:23]} 23. Qxe5 {[%clk 0:01:21]}  Qb6 {[%clk 0:02:19]} 24. Re2 {[%clk 0:00:26]}  Bxf3 {[%clk 0:02:17]} 25. gxf3 {[%clk 0:00:27]}  Rf6 {[%clk 0:02:17]} 26. h4 {[%clk 0:00:20]}  Qc6 {[%clk 0:02:17]} 27. Qg3 {[%clk 0:00:14]}  Kh7 {[%clk 0:02:16]} 28. h5 {[%clk 0:00:14]}  f4 {[%clk 0:02:15]} 29. Qg4 {[%clk 0:00:13]}  Rf5 {[%clk 0:02:16]} 30. Kh2 {[%clk 0:00:08]}  Qb5 {[%clk 0:02:13]} 31. Qg6+ {[%clk 0:00:04]}  Kh8 {[%clk 0:02:13]} 32. Qxe8+ {[%clk 0:00:03]}  Qxe8 {[%clk 0:02:12]} 0-1


[Site "https://www.chess.com"]

[Event "Titled Tuesday Blitz June 13 Late 2023"]
[White "GAO"]
[Black "Kim, Sergey"]
[BlackFideId "13700570"]
[WhiteElo "2379"]
[BlackElo "2546"]
[Result "1-0"]
[Round "6"]
[TimeControl "180+2"]
[Date "2023.06.13"]
[WhiteClock "0:01:06"]
[BlackClock "0:00:20"]
[Board "91"]

1. e4 {[%clk 0:03:00]}  e5 {[%clk 0:03:00]} 2. Nf3 {[%clk 0:03:00]}  Nc6 {[%clk 0:03:00]} 3. Bb5 {[%clk 0:03:01]}  a6 {[%clk 0:03:00]} 4. Ba4 {[%clk 0:03:01]}  Nf6 {[%clk 0:03:00]} 5. O-O {[%clk 0:03:02]}  b5 {[%clk 0:03:00]} 6. Bb3 {[%clk 0:03:01]}  Bc5 {[%clk 0:03:00]} 7. a4 {[%clk 0:03:00]}  Rb8 {[%clk 0:02:58]} 8. c3 {[%clk 0:02:59]}  d6 {[%clk 0:02:58]} 9. h3 {[%clk 0:02:57]}  h6 {[%clk 0:02:57]} 10. d4 {[%clk 0:02:56]}  Bb6 {[%clk 0:02:56]} 11. a5 {[%clk 0:02:54]}  Ba7 {[%clk 0:02:56]} 12. Re1 {[%clk 0:02:51]}  O-O {[%clk 0:02:55]} 13. Be3 {[%clk 0:02:50]}  Ra8 {[%clk 0:02:54]} 14. Nbd2 {[%clk 0:02:46]}  Re8 {[%clk 0:02:53]} 15. Nf1 {[%clk 0:02:46]}  Bb7 {[%clk 0:02:47]} 16. Ng3 {[%clk 0:02:45]}  exd4 {[%clk 0:02:40]} 17. Nxd4 {[%clk 0:02:32]}  Nxd4 {[%clk 0:02:37]} 18. cxd4 {[%clk 0:02:13]}  Nxe4 {[%clk 0:02:24]} 19. Nxe4 {[%clk 0:02:13]}  Bxe4 {[%clk 0:02:23]} 20. Qg4 {[%clk 0:02:09]}  Qf6 {[%clk 0:02:09]} 21. Bxh6 {[%clk 0:01:35]}  d5 {[%clk 0:01:36]} 22. Bg5 {[%clk 0:01:16]}  Qxd4 {[%clk 0:00:48]} 23. Be3 {[%clk 0:01:15]}  Qxb2 {[%clk 0:00:48]} 24. Bxa7 {[%clk 0:01:10]}  Rxa7 {[%clk 0:00:44]} 25. Bxd5 {[%clk 0:01:09]}  Bxd5 {[%clk 0:00:20]} 26. Rxe8+ {[%clk 0:01:08]}  Kh7 {[%clk 0:00:20]} 27. Qh5# {[%clk 0:01:06]} 1-0


[Site "https://www.chess.com"]

[Event "Titled Tuesday Blitz June 13 Late 2023"]
[White "angelgab3"]
[Black "Matsuura, Frederico"]
[BlackFideId "2107848"]
[WhiteElo "2522"]
[BlackElo "2302"]
[Result "0-1"]
[Round "6"]
[TimeControl "180+2"]
[Date "2023.06.13"]
[WhiteClock "0:00:09"]
[BlackClock "0:00:07"]
[Board "94"]

1. e4 {[%clk 0:03:00]}  e6 {[%clk 0:03:00]} 2. d4 {[%clk 0:03:00]}  d5 {[%clk 0:03:00]} 3. Nc3 {[%clk 0:03:01]}  Bb4 {[%clk 0:03:00]} 4. e5 {[%clk 0:03:01]}  Qd7 {[%clk 0:03:00]} 5. Nf3 {[%clk 0:02:57]}  b6 {[%clk 0:02:59]} 6. a3 {[%clk 0:02:54]}  Bxc3+ {[%clk 0:02:59]} 7. bxc3 {[%clk 0:02:49]}  Ba6 {[%clk 0:02:59]} 8. Bxa6 {[%clk 0:02:47]}  Nxa6 {[%clk 0:03:00]} 9. a4 {[%clk 0:02:47]}  Ne7 {[%clk 0:02:46]} 10. h4 {[%clk 0:02:38]}  h6 {[%clk 0:02:39]} 11. h5 {[%clk 0:02:38]}  Nc6 {[%clk 0:02:34]} 12. Qd3 {[%clk 0:02:17]}  Nab8 {[%clk 0:02:32]} 13. Rh3 {[%clk 0:02:16]}  Na5 {[%clk 0:02:09]} 14. Rg3 {[%clk 0:02:13]}  Nbc6 {[%clk 0:01:43]} 15. Rxg7 {[%clk 0:02:05]}  O-O-O {[%clk 0:01:43]} 16. Bf4 {[%clk 0:01:45]}  Nc4 {[%clk 0:01:38]} 17. Nd2 {[%clk 0:01:30]}  N6a5 {[%clk 0:01:25]} 18. Nb3 {[%clk 0:01:28]}  Qe7 {[%clk 0:01:02]} 19. Nxa5 {[%clk 0:01:08]}  Nxa5 {[%clk 0:01:01]} 20. Qa6+ {[%clk 0:00:55]}  Kb8 {[%clk 0:01:00]} 21. Rb1 {[%clk 0:00:55]}  Ka8 {[%clk 0:00:44]} 22. Qd3 {[%clk 0:00:25]}  Qh4 {[%clk 0:00:39]} 23. Rxf7 {[%clk 0:00:20]}  Qxh5 {[%clk 0:00:27]} 24. Rxc7 {[%clk 0:00:20]}  Rhf8 {[%clk 0:00:20]} 25. Rxb6 {[%clk 0:00:20]}  Qh1+ {[%clk 0:00:17]} 26. Kd2 {[%clk 0:00:18]}  Nc4+ {[%clk 0:00:17]} 27. Rxc4 {[%clk 0:00:19]}  axb6 {[%clk 0:00:16]} 28. Rc7 {[%clk 0:00:18]}  Kb8 {[%clk 0:00:09]} 29. Rg7 {[%clk 0:00:14]}  Rxf4 {[%clk 0:00:08]} 30. Qa6 {[%clk 0:00:15]}  Rxf2+ {[%clk 0:00:08]} 31. Qe2 {[%clk 0:00:08]}  Rxe2+ {[%clk 0:00:07]} 32. Kxe2 {[%clk 0:00:09]}  Qh5+ {[%clk 0:00:07]} 0-1


[Site "https://www.chess.com"]

[Event "Titled Tuesday Blitz June 13 Late 2023"]
[White "Kokoszczynski, Jan"]
[Black "Torres Dominguez, David"]
[WhiteFideId "1174460"]
[BlackFideId "2220857"]
[WhiteElo "2139"]
[BlackElo "1999"]
[Result "0-1"]
[Round "6"]
[TimeControl "180+2"]
[Date "2023.06.13"]
[WhiteClock "0:00:02"]
[BlackClock "0:00:05"]
[Board "96"]

1. d4 {[%clk 0:02:56]}  e5 {[%clk 0:02:59]} 2. dxe5 {[%clk 0:02:56]}  d6 {[%clk 0:03:00]} 3. exd6 {[%clk 0:02:57]}  Bxd6 {[%clk 0:03:00]} 4. Nf3 {[%clk 0:02:55]}  Bg4 {[%clk 0:02:58]} 5. e3 {[%clk 0:02:54]}  Nc6 {[%clk 0:02:56]} 6. Bb5 {[%clk 0:02:52]}  Ne7 {[%clk 0:02:47]} 7. Nbd2 {[%clk 0:02:39]}  O-O {[%clk 0:02:41]} 8. Ne4 {[%clk 0:02:36]}  Bb4+ {[%clk 0:02:38]} 9. Bd2 {[%clk 0:02:34]}  Bxd2+ {[%clk 0:02:33]} 10. Qxd2 {[%clk 0:02:32]}  Qc8 {[%clk 0:02:19]} 11. Bxc6 {[%clk 0:01:57]}  Nxc6 {[%clk 0:02:17]} 12. Qc3 {[%clk 0:01:57]}  Rd8 {[%clk 0:02:02]} 13. Ned2 {[%clk 0:01:41]}  Qe6 {[%clk 0:01:55]} 14. h3 {[%clk 0:01:35]}  Bh5 {[%clk 0:01:52]} 15. Qb3 {[%clk 0:00:55]}  Qf6 {[%clk 0:01:51]} 16. O-O-O {[%clk 0:00:49]}  Bg6 {[%clk 0:01:46]} 17. Rhe1 {[%clk 0:00:38]}  a5 {[%clk 0:01:46]} 18. a4 {[%clk 0:00:33]}  Nb4 {[%clk 0:01:44]} 19. e4 {[%clk 0:00:32]}  c6 {[%clk 0:01:28]} 20. Re3 {[%clk 0:00:27]}  b5 {[%clk 0:01:26]} 21. c3 {[%clk 0:00:26]}  bxa4 {[%clk 0:01:23]} 22. Qxa4 {[%clk 0:00:26]}  Nd3+ {[%clk 0:01:18]} 23. Kc2 {[%clk 0:00:26]}  Nxf2 {[%clk 0:01:18]} 24. Rf1 {[%clk 0:00:26]}  Qf4 {[%clk 0:00:55]} 25. Re2 {[%clk 0:00:13]}  Nd3 {[%clk 0:00:46]} 26. Nd4 {[%clk 0:00:13]}  Qg5 {[%clk 0:00:25]} 27. Kxd3 {[%clk 0:00:12]}  c5 {[%clk 0:00:26]} 28. Nf3 {[%clk 0:00:12]}  Qh5 {[%clk 0:00:24]} 29. Qc6 {[%clk 0:00:09]}  cxd4 {[%clk 0:00:23]} 30. cxd4 {[%clk 0:00:10]}  Rac8 {[%clk 0:00:22]} 31. Qb6 {[%clk 0:00:10]}  Rb8 {[%clk 0:00:20]} 32. Qc7 {[%clk 0:00:09]}  Rdc8 {[%clk 0:00:19]} 33. Qd7 {[%clk 0:00:10]}  Rb3+ {[%clk 0:00:18]} 34. Kd2 {[%clk 0:00:10]}  Rxb2+ {[%clk 0:00:18]} 35. Ke3 {[%clk 0:00:09]}  Rb3+ {[%clk 0:00:18]} 36. Kf2 {[%clk 0:00:09]}  Rbb8 {[%clk 0:00:16]} 37. Kg1 {[%clk 0:00:09]}  Rd8 {[%clk 0:00:14]} 38. Qa7 {[%clk 0:00:09]}  Re8 {[%clk 0:00:13]} 39. Re3 {[%clk 0:00:07]}  Qh6 {[%clk 0:00:10]} 40. d5 {[%clk 0:00:06]}  Ra8 {[%clk 0:00:08]} 41. Qd7 {[%clk 0:00:06]}  Qxe3+ {[%clk 0:00:06]} 42. Kh1 {[%clk 0:00:07]}  Qxe4 {[%clk 0:00:06]} 43. Ng5 {[%clk 0:00:07]}  Qe7 {[%clk 0:00:06]} 44. Qb5 {[%clk 0:00:07]}  Qxg5 {[%clk 0:00:06]} 45. Rb1 {[%clk 0:00:02]}  Bxb1 {[%clk 0:00:05]} 0-1


[Site "https://www.chess.com"]

[Event "Titled Tuesday Blitz June 13 Late 2023"]
[White "Fisher_TheGalactic"]
[Black "Kaplan, Avi Harrison"]
[BlackFideId "30934559"]
[WhiteElo "2685"]
[BlackElo "1983"]
[Result "1-0"]
[Round "6"]
[TimeControl "180+2"]
[Date "2023.06.13"]
[WhiteClock "0:00:17"]
[BlackClock "0:00:06"]
[Board "98"]

1. Nf3 {[%clk 0:03:00]}  b6 {[%clk 0:02:58]} 2. d4 {[%clk 0:03:01]}  Bb7 {[%clk 0:02:58]} 3. c4 {[%clk 0:03:01]}  f5 {[%clk 0:02:58]} 4. Nc3 {[%clk 0:02:57]}  Nf6 {[%clk 0:02:58]} 5. d5 {[%clk 0:02:56]}  a5 {[%clk 0:02:54]} 6. Nd4 {[%clk 0:02:56]}  g6 {[%clk 0:02:53]} 7. Bf4 {[%clk 0:02:54]}  Bg7 {[%clk 0:02:51]} 8. Ncb5 {[%clk 0:02:53]}  Na6 {[%clk 0:02:50]} 9. e3 {[%clk 0:02:42]}  O-O {[%clk 0:02:48]} 10. Be2 {[%clk 0:02:38]}  Ne4 {[%clk 0:02:28]} 11. O-O {[%clk 0:02:29]}  g5 {[%clk 0:02:17]} 12. Bg3 {[%clk 0:02:28]}  e5 {[%clk 0:02:03]} 13. dxe6 {[%clk 0:02:25]}  f4 {[%clk 0:02:03]} 14. exd7 {[%clk 0:01:59]}  fxg3 {[%clk 0:01:29]} 15. Ne6 {[%clk 0:01:57]}  Qf6 {[%clk 0:01:29]} 16. Nxf8 {[%clk 0:01:51]}  gxf2+ {[%clk 0:01:25]} 17. Kh1 {[%clk 0:01:46]}  g4 {[%clk 0:00:56]} 18. Bxg4 {[%clk 0:01:19]}  Qh4 {[%clk 0:00:43]} 19. Be6+ {[%clk 0:01:07]}  Kh8 {[%clk 0:00:43]} 20. Qg4 {[%clk 0:01:03]}  Qh6 {[%clk 0:00:33]} 21. Bd5 {[%clk 0:00:56]}  Nf6 {[%clk 0:00:29]} 22. Qf3 {[%clk 0:00:38]}  Bxd5 {[%clk 0:00:21]} 23. cxd5 {[%clk 0:00:38]}  Rxf8 {[%clk 0:00:21]} 24. Rxf2 {[%clk 0:00:36]}  Nc5 {[%clk 0:00:17]} 25. Raf1 {[%clk 0:00:33]}  Ncxd7 {[%clk 0:00:17]} 26. Nxc7 {[%clk 0:00:33]}  Ne5 {[%clk 0:00:14]} 27. Qg3 {[%clk 0:00:32]}  Neg4 {[%clk 0:00:11]} 28. Rf4 {[%clk 0:00:32]}  Rg8 {[%clk 0:00:04]} 29. Ne6 {[%clk 0:00:27]}  Nh5 {[%clk 0:00:02]} 30. Qxg4 {[%clk 0:00:25]}  Nxf4 {[%clk 0:00:02]} 31. Qxf4 {[%clk 0:00:23]}  Qg6 {[%clk 0:00:02]} 32. Qf5 {[%clk 0:00:21]}  Qe8 {[%clk 0:00:01]} 33. d6 {[%clk 0:00:20]}  Bf8 {[%clk 0:00:01]} 34. Qf6+ {[%clk 0:00:19]}  Bg7 {[%clk 0:00:01]} 35. Nxg7 {[%clk 0:00:17]}  Rxg7 {[%clk 0:00:02]} 36. Qf8+ {[%clk 0:00:17]}  Rg8 {[%clk 0:00:02]} 37. Qxe8 {[%clk 0:00:17]}  Rxe8 {[%clk 0:00:03]} 38. d7 {[%clk 0:00:17]}  Rd8 {[%clk 0:00:03]} 39. Rd1 {[%clk 0:00:17]}  Kg7 {[%clk 0:00:04]} 40. g4 {[%clk 0:00:18]}  Kf6 {[%clk 0:00:04]} 41. Kg2 {[%clk 0:00:18]}  Ke5 {[%clk 0:00:04]} 42. Kg3 {[%clk 0:00:19]}  h6 {[%clk 0:00:05]} 43. Kh4 {[%clk 0:00:18]}  Ke4 {[%clk 0:00:05]} 44. Kh5 {[%clk 0:00:19]}  Kxe3 {[%clk 0:00:06]} 45. Kxh6 {[%clk 0:00:18]}  Kf4 {[%clk 0:00:06]} 46. g5 {[%clk 0:00:18]}  Kf5 {[%clk 0:00:06]} 47. g6 {[%clk 0:00:18]}  Kf6 {[%clk 0:00:07]} 48. g7 {[%clk 0:00:17]}  Kf7 {[%clk 0:00:05]} 49. Rf1+ {[%clk 0:00:17]}  Ke6 {[%clk 0:00:05]} 50. Rf8 {[%clk 0:00:17]}  Rxd7 {[%clk 0:00:05]} 51. g8=Q+ {[%clk 0:00:18]}  Kd6 {[%clk 0:00:06]} 52. Rd8 {[%clk 0:00:18]}  Rxd8 {[%clk 0:00:06]} 53. Qxd8+ {[%clk 0:00:19]}  Kc6 {[%clk 0:00:06]} 54. Qd3 {[%clk 0:00:19]}  a4 {[%clk 0:00:06]} 55. Kg5 {[%clk 0:00:20]}  a3 {[%clk 0:00:07]} 56. b3 {[%clk 0:00:20]}  Kb7 {[%clk 0:00:07]} 57. h4 {[%clk 0:00:21]}  Ka7 {[%clk 0:00:07]} 58. h5 {[%clk 0:00:22]}  Kb7 {[%clk 0:00:08]} 59. h6 {[%clk 0:00:22]}  Kc6 {[%clk 0:00:08]} 60. h7 {[%clk 0:00:23]}  Kc5 {[%clk 0:00:08]} 61. h8=Q {[%clk 0:00:24]}  Kc6 {[%clk 0:00:08]} 62. Qh6+ {[%clk 0:00:24]}  Kb7 {[%clk 0:00:08]} 63. Qb5 {[%clk 0:00:24]}  Ka8 {[%clk 0:00:08]} 64. Qhc6+ {[%clk 0:00:21]}  Kb8 {[%clk 0:00:07]} 65. Qcxb6+ {[%clk 0:00:16]}  Kc8 {[%clk 0:00:06]} 66. Qe8# {[%clk 0:00:17]} 1-0


[Site "https://www.chess.com"]

[Event "Titled Tuesday Blitz June 13 Late 2023"]
[White "Renjith, Sravan"]
[Black "Lalanne, Pablo"]
[WhiteFideId "4306783"]
[BlackFideId "112151"]
[WhiteElo "2104"]
[BlackElo "2120"]
[Result "1-0"]
[Round "6"]
[TimeControl "180+2"]
[Date "2023.06.13"]
[WhiteClock "0:00:04"]
[BlackClock "0:00:04"]
[Board "99"]

1. e4 {[%clk 0:03:00]}  c5 {[%clk 0:02:59]} 2. Nf3 {[%clk 0:03:00]}  d6 {[%clk 0:02:59]} 3. c3 {[%clk 0:02:54]}  Nf6 {[%clk 0:02:58]} 4. Be2 {[%clk 0:02:51]}  Nc6 {[%clk 0:02:58]} 5. d4 {[%clk 0:02:39]}  cxd4 {[%clk 0:02:57]} 6. cxd4 {[%clk 0:02:37]}  d5 {[%clk 0:02:55]} 7. e5 {[%clk 0:02:36]}  Ne4 {[%clk 0:02:56]} 8. Nc3 {[%clk 0:02:37]}  Nxc3 {[%clk 0:02:47]} 9. bxc3 {[%clk 0:02:38]}  Bg4 {[%clk 0:02:43]} 10. O-O {[%clk 0:02:36]}  e6 {[%clk 0:02:43]} 11. Rb1 {[%clk 0:02:32]}  Qc7 {[%clk 0:02:38]} 12. h3 {[%clk 0:02:28]}  Bf5 {[%clk 0:02:35]} 13. Rb2 {[%clk 0:02:21]}  Ba3 {[%clk 0:02:25]} 14. Rxb7 {[%clk 0:02:08]}  Qxb7 {[%clk 0:02:26]} 15. Bxa3 {[%clk 0:02:09]}  Ne7 {[%clk 0:02:05]} 16. Qa4+ {[%clk 0:02:03]}  Kf8 {[%clk 0:01:43]} 17. Bb5 {[%clk 0:01:50]}  Rc8 {[%clk 0:01:16]} 18. Ba6 {[%clk 0:01:45]}  Qc6 {[%clk 0:01:16]} 19. Bxe7+ {[%clk 0:01:31]}  Kxe7 {[%clk 0:01:14]} 20. Qb4+ {[%clk 0:01:21]}  Kd8 {[%clk 0:01:11]} 21. Bxc8 {[%clk 0:01:17]}  Kxc8 {[%clk 0:01:09]} 22. Qe7 {[%clk 0:01:08]}  Qc7 {[%clk 0:01:05]} 23. Qa3 {[%clk 0:01:03]}  Kd7 {[%clk 0:00:59]} 24. g4 {[%clk 0:00:59]}  Bd3 {[%clk 0:00:46]} 25. Re1 {[%clk 0:00:55]}  Rc8 {[%clk 0:00:41]} 26. Qa4+ {[%clk 0:00:46]}  Ke7 {[%clk 0:00:35]} 27. Qb4+ {[%clk 0:00:46]}  Ke8 {[%clk 0:00:32]} 28. Rc1 {[%clk 0:00:45]}  a5 {[%clk 0:00:29]} 29. Qa4+ {[%clk 0:00:44]}  Kf8 {[%clk 0:00:25]} 30. Nd2 {[%clk 0:00:44]}  Kg8 {[%clk 0:00:23]} 31. Nb3 {[%clk 0:00:43]}  Qe7 {[%clk 0:00:17]} 32. Nc5 {[%clk 0:00:38]}  Be2 {[%clk 0:00:15]} 33. Re1 {[%clk 0:00:37]}  Bc4 {[%clk 0:00:11]} 34. Qxa5 {[%clk 0:00:35]}  h5 {[%clk 0:00:10]} 35. Re3 {[%clk 0:00:23]}  hxg4 {[%clk 0:00:10]} 36. hxg4 {[%clk 0:00:24]}  Rb8 {[%clk 0:00:10]} 37. Qa3 {[%clk 0:00:20]}  Qh4 {[%clk 0:00:10]} 38. Qc1 {[%clk 0:00:16]}  Qxg4+ {[%clk 0:00:09]} 39. Rg3 {[%clk 0:00:16]}  Qf5 {[%clk 0:00:08]} 40. Qe3 {[%clk 0:00:13]}  Rb1+ {[%clk 0:00:08]} 41. Kh2 {[%clk 0:00:13]}  Qh7+ {[%clk 0:00:06]} 42. Rh3 {[%clk 0:00:13]}  Qg6 {[%clk 0:00:07]} 43. Qg3 {[%clk 0:00:12]}  Qxg3+ {[%clk 0:00:05]} 44. Rxg3 {[%clk 0:00:11]}  Rb2 {[%clk 0:00:06]} 45. Rg2 {[%clk 0:00:09]}  Rxa2 {[%clk 0:00:06]} 46. Kg3 {[%clk 0:00:08]}  Rc2 {[%clk 0:00:06]} 47. Kf4 {[%clk 0:00:07]}  Rxc3 {[%clk 0:00:07]} 48. Nd7 {[%clk 0:00:08]}  Rc2 {[%clk 0:00:07]} 49. Ke3 {[%clk 0:00:06]}  Rc3+ {[%clk 0:00:06]} 50. Kf4 {[%clk 0:00:07]}  Rd3 {[%clk 0:00:07]} 51. f3 {[%clk 0:00:04]}  Rxd4+ {[%clk 0:00:06]} 52. Kg5 {[%clk 0:00:05]}  Rd3 {[%clk 0:00:06]} 53. Rb2 {[%clk 0:00:04]}  Kh7 {[%clk 0:00:05]} 54. Nf8+ {[%clk 0:00:03]}  Kg8 {[%clk 0:00:06]} 55. Rb8 {[%clk 0:00:04]}  f6+ {[%clk 0:00:06]} 56. Kg6 {[%clk 0:00:04]}  Rxf3 {[%clk 0:00:04]} 57. Nxe6# {[%clk 0:00:04]} 1-0


[Site "https://www.chess.com"]

[Event "Titled Tuesday Blitz June 13 Late 2023"]
[White "Sun, Rick"]
[Black "Pein, Jonathan"]
[WhiteFideId "30909481"]
[BlackFideId "417092"]
[WhiteElo "2169"]
[BlackElo "2151"]
[Result "1-0"]
[Round "6"]
[TimeControl "180+2"]
[Date "2023.06.13"]
[WhiteClock "0:00:17"]
[BlackClock "0:00:14"]
[Board "100"]

1. e4 {[%clk 0:03:00]}  d5 {[%clk 0:02:56]} 2. exd5 {[%clk 0:03:01]}  Qxd5 {[%clk 0:02:57]} 3. Nc3 {[%clk 0:03:01]}  Qa5 {[%clk 0:02:57]} 4. Nf3 {[%clk 0:03:02]}  Nf6 {[%clk 0:02:58]} 5. b4 {[%clk 0:03:03]}  Qxb4 {[%clk 0:02:57]} 6. Rb1 {[%clk 0:03:04]}  Qd6 {[%clk 0:02:58]} 7. d4 {[%clk 0:02:59]}  g6 {[%clk 0:02:58]} 8. Bd3 {[%clk 0:02:59]}  Bg7 {[%clk 0:02:58]} 9. Nb5 {[%clk 0:02:59]}  Qd8 {[%clk 0:02:57]} 10. Bf4 {[%clk 0:02:58]}  Nd5 {[%clk 0:02:51]} 11. Be5 {[%clk 0:02:54]}  f6 {[%clk 0:02:43]} 12. Bg3 {[%clk 0:02:50]}  a6 {[%clk 0:02:32]} 13. c4 {[%clk 0:02:42]}  axb5 {[%clk 0:02:32]} 14. cxd5 {[%clk 0:02:41]}  Qxd5 {[%clk 0:02:27]} 15. Bxc7 {[%clk 0:02:19]}  Nc6 {[%clk 0:02:05]} 16. O-O {[%clk 0:02:07]}  Bg4 {[%clk 0:02:01]} 17. Rxb5 {[%clk 0:01:57]}  Bxf3 {[%clk 0:01:48]} 18. Rxd5 {[%clk 0:01:11]}  Bxd1 {[%clk 0:01:48]} 19. Rxd1 {[%clk 0:01:11]}  Rxa2 {[%clk 0:01:39]} 20. Rb5 {[%clk 0:01:08]}  Nxd4 {[%clk 0:01:31]} 21. Rxb7 {[%clk 0:01:01]}  f5 {[%clk 0:00:48]} 22. h4 {[%clk 0:00:34]}  Bf6 {[%clk 0:00:37]} 23. h5 {[%clk 0:00:32]}  gxh5 {[%clk 0:00:35]} 24. Bc4 {[%clk 0:00:26]}  Rc2 {[%clk 0:00:30]} 25. Bd5 {[%clk 0:00:18]}  Ne2+ {[%clk 0:00:26]} 26. Kh1 {[%clk 0:00:16]}  Nc3 {[%clk 0:00:19]} 27. Be6 {[%clk 0:00:13]}  Kf8 {[%clk 0:00:16]} 28. Rd8+ {[%clk 0:00:13]}  Kg7 {[%clk 0:00:16]} 29. Rxh8 {[%clk 0:00:13]}  Kxh8 {[%clk 0:00:16]} 30. Rb8+ {[%clk 0:00:14]}  Kg7 {[%clk 0:00:17]} 31. Rg8+ {[%clk 0:00:15]}  Kh6 {[%clk 0:00:14]} 32. Bf4+ {[%clk 0:00:16]}  Bg5 {[%clk 0:00:14]} 33. Bxg5# {[%clk 0:00:17]} 1-0


[Site "https://www.chess.com"]

[Event "Titled Tuesday Blitz June 13 Late 2023"]
[White "Spata, German"]
[Black "Kubatko, Ivan"]
[WhiteFideId "113026"]
[BlackFideId "24111473"]
[WhiteElo "2260"]
[BlackElo "2285"]
[Result "0-1"]
[Round "6"]
[TimeControl "180+2"]
[Date "2023.06.13"]
[WhiteClock "0:00:00"]
[BlackClock "0:00:04"]
[Board "101"]

1. Nf3 {[%clk 0:02:52]}  d5 {[%clk 0:02:59]} 2. d4 {[%clk 0:02:52]}  c5 {[%clk 0:02:58]} 3. c3 {[%clk 0:02:51]}  Nf6 {[%clk 0:02:58]} 4. e3 {[%clk 0:02:50]}  Nc6 {[%clk 0:02:58]} 5. Bd3 {[%clk 0:02:50]}  g6 {[%clk 0:02:59]} 6. O-O {[%clk 0:02:49]}  Bg7 {[%clk 0:02:59]} 7. Nbd2 {[%clk 0:02:49]}  O-O {[%clk 0:02:56]} 8. Re1 {[%clk 0:02:48]}  Nd7 {[%clk 0:02:55]} 9. h3 {[%clk 0:02:44]}  e5 {[%clk 0:02:55]} 10. dxe5 {[%clk 0:02:44]}  Ndxe5 {[%clk 0:02:56]} 11. Nxe5 {[%clk 0:02:45]}  Nxe5 {[%clk 0:02:56]} 12. Be2 {[%clk 0:02:45]}  Be6 {[%clk 0:02:51]} 13. Nf3 {[%clk 0:02:44]}  Nc6 {[%clk 0:02:51]} 14. Qc2 {[%clk 0:02:41]}  Rc8 {[%clk 0:02:39]} 15. b3 {[%clk 0:02:40]}  d4 {[%clk 0:02:28]} 16. Bb2 {[%clk 0:02:40]}  Qb6 {[%clk 0:02:01]} 17. Bf1 {[%clk 0:02:31]}  Rfd8 {[%clk 0:01:54]} 18. Rad1 {[%clk 0:02:22]}  dxc3 {[%clk 0:01:48]} 19. Bxc3 {[%clk 0:02:22]}  Nb4 {[%clk 0:01:48]} 20. Bxb4 {[%clk 0:02:17]}  cxb4 {[%clk 0:01:37]} 21. Rxd8+ {[%clk 0:02:15]}  Qxd8 {[%clk 0:01:33]} 22. Qb1 {[%clk 0:02:01]}  Qc7 {[%clk 0:01:23]} 23. Nd4 {[%clk 0:01:55]}  Bd5 {[%clk 0:01:16]} 24. Rd1 {[%clk 0:01:46]}  Qc5 {[%clk 0:01:08]} 25. Be2 {[%clk 0:01:41]}  a5 {[%clk 0:01:07]} 26. Bf3 {[%clk 0:01:37]}  Bxf3 {[%clk 0:01:06]} 27. Nxf3 {[%clk 0:01:37]}  b5 {[%clk 0:01:06]} 28. Qe4 {[%clk 0:01:27]}  a4 {[%clk 0:00:46]} 29. Rd5 {[%clk 0:01:12]}  Qc1+ {[%clk 0:00:33]} 30. Kh2 {[%clk 0:01:12]}  Qc2 {[%clk 0:00:33]} 31. Qxc2 {[%clk 0:00:41]}  Rxc2 {[%clk 0:00:34]} 32. Rxb5 {[%clk 0:00:40]}  axb3 {[%clk 0:00:34]} 33. axb3 {[%clk 0:00:40]}  Bc3 {[%clk 0:00:35]} 34. Kg3 {[%clk 0:00:27]}  Rb2 {[%clk 0:00:35]} 35. Nd4 {[%clk 0:00:26]}  Be1 {[%clk 0:00:35]} 36. Kf3 {[%clk 0:00:22]}  Rxf2+ {[%clk 0:00:35]} 37. Ke4 {[%clk 0:00:23]}  Rb2 {[%clk 0:00:35]} 38. g4 {[%clk 0:00:21]}  Bc3 {[%clk 0:00:34]} 39. Kd5 {[%clk 0:00:18]}  Rh2 {[%clk 0:00:26]} 40. Nc6 {[%clk 0:00:15]}  Rxh3 {[%clk 0:00:26]} 41. e4 {[%clk 0:00:12]}  Rg3 {[%clk 0:00:23]} 42. Nxb4 {[%clk 0:00:11]}  Rxg4 {[%clk 0:00:24]} 43. Nc6 {[%clk 0:00:10]}  Kg7 {[%clk 0:00:22]} 44. Rc5 {[%clk 0:00:09]}  Rg3 {[%clk 0:00:17]} 45. b4 {[%clk 0:00:06]}  h5 {[%clk 0:00:18]} 46. b5 {[%clk 0:00:06]}  h4 {[%clk 0:00:18]} 47. b6 {[%clk 0:00:06]}  h3 {[%clk 0:00:07]} 48. b7 {[%clk 0:00:05]}  h2 {[%clk 0:00:08]} 49. b8=Q {[%clk 0:00:05]}  h1=Q {[%clk 0:00:06]} 50. Qxg3 {[%clk 0:00:04]}  Qd1+ {[%clk 0:00:03]} 51. Kc4 {[%clk 0:00:00]}  Bf6 {[%clk 0:00:04]} 0-1


[Site "https://www.chess.com"]